lending/lending_fUSD_20250719
["ID","MTS","AMOUNT","RATE_DAILY","PERIOD"]
[373364582,1752969059602,-300.0,0.00019396,2]
[373364583,1752969059612,-1560.48,0.00019396,2]
[373364584,1752969059622,-1560.48,0.00019396,2]
[373364585,1752969059632,-151.0,0.00019397,2]
[373364586,1752969059641,-287.760622,0.00019397,2]
[373364587,1752969059651,-151.297034,0.00019397,2]
[373364588,1752969059661,-151.0,0.00019397,2]
[373364589,1752969059671,-151.0,0.00019397,2]
[373364590,1752969059681,-151.0,0.00019397,2]
[373364591,1752969059691,-151.0,0.00019397,2]
[373364592,1752969059701,-151.0,0.00019397,2]
[373364593,1752969059711,-156.69608,0.00019397,2]
[373364594,1752969059721,-151.0,0.00019397,2]
[373364595,1752969059731,-151.0,0.00019397,2]
[373364596,1752969059741,-151.0,0.00019397,2]
[373364597,1752969059750,-151.0,0.00019397,2]
[373364598,1752969059760,-198.734952,0.00019397,2]
[373364599,1752969059770,-198.423926,0.00019397,2]
[373364600,1752969059780,-198.423926,0.00019397,2]
[373364601,1752969059790,-166.771639,0.00019397,2]
[373364602,1752969059799,-166.771639,0.00019397,2]
[373364603,1752969059809,-151.439055,0.00019397,2]
[373364604,1752969059819,-151.0,0.00019397,2]
[373364605,1752969059830,-151.0,0.00019397,2]
[373364606,1752969059839,-151.0,0.00019397,2]
[373364607,1752969059850,-151.0,0.00019397,2]
[373364608,1752969059859,-151.0,0.00019397,2]
[373364609,1752969059869,-151.0,0.00019397,2]
[373364610,1752969059879,-177.347083,0.00019397,2]
[373364611,1752969059890,-151.0,0.00019397,2]
[373364612,1752969059899,-171.879904,0.00019397,2]
[373364613,1752969059910,-171.879904,0.00019397,2]
[373364614,1752969059920,-151.0,0.00019397,2]
[373364615,1752969059930,-151.0,0.00019397,2]
[373364616,1752969059940,-151.0,0.00019397,2]
[373364617,1752969059953,-151.0,0.00019397,2]
[373364618,1752969060165,-151.0,0.00019397,2]
[373364619,1752969060175,-151.0,0.00019397,2]
[373364620,1752969060184,-151.0,0.00019397,2]
[373364621,1752969060194,-231.937217,0.00019397,2]
[373364622,1752969060203,-151.0,0.00019397,2]
[373364623,1752969060213,-151.0,0.00019397,2]
[373364624,1752969060223,-151.0,0.00019397,2]
[373364625,1752969060233,-151.0,0.00019397,2]
[373364626,1752969060242,-383.900494,0.00019397,2]
[373364627,1752969060251,-364.762199,0.00019397,2]
[373364628,1752969060260,-409.308374,0.00019397,2]
[373364629,1752969060269,-151.0,0.00019397,2]
[373364630,1752969060278,-151.0,0.00019397,2]
[373364631,1752969060287,-151.0,0.00019397,2]
[373364632,1752969060296,-151.0,0.00019397,2]
[373364633,1752969060305,-457.951232,0.00019397,2]
[373364634,1752969060314,-457.951232,0.00019397,2]
[373364635,1752969060324,-151.0,0.00019397,2]
[373364636,1752969060333,-151.0,0.00019397,2]
[373364637,1752969060342,-151.0,0.00019397,2]
[373364638,1752969060351,-201.230558,0.00019397,2]
[373364639,1752969060361,-201.230558,0.00019397,2]
[373364640,1752969060370,-422.172838,0.00019397,2]
[373364641,1752969060379,-422.172838,0.00019397,2]
[373364642,1752969060389,-151.0,0.00019397,2]
[373364643,1752969060398,-151.0,0.00019397,2]
[373364644,1752969060407,-151.0,0.00019397,2]
[373364645,1752969060416,-151.0,0.00019397,2]
[373364646,1752969060425,-151.0,0.00019397,2]
[373364647,1752969060434,-151.0,0.00019397,2]
[373364648,1752969060443,-151.0,0.00019397,2]
[373364649,1752969060452,-151.0,0.00019397,2]
[373364650,1752969060461,-151.0,0.00019397,2]
[373364651,1752969060470,-151.0,0.00019397,2]
[373364652,1752969060480,-151.0,0.00019397,2]
[373364653,1752969060489,-152.407032,0.00019397,2]
[373364654,1752969060499,-151.0,0.00019397,2]
[373364655,1752969060508,-151.0,0.00019397,2]
[373364656,1752969060518,-151.0,0.00019397,2]
[373364657,1752969060527,-151.0,0.00019397,2]
[373364658,1752969060536,-151.0,0.00019397,2]
[373364659,1752969060546,-151.0,0.00019397,2]
[373364660,1752969060555,-151.0,0.00019397,2]
[373364661,1752969060565,-151.0,0.00019397,2]
[373364662,1752969060574,-151.0,0.00019397,2]
[373364663,1752969060585,-151.0,0.00019397,2]
[373364664,1752969060594,-151.0,0.00019397,2]
[373364665,1752969060603,-218.25184,0.00019397,2]
[373364666,1752969060613,-218.25184,0.00019397,2]
[373364667,1752969060622,-218.25184,0.00019397,2]
[373364668,1752969060633,-218.25184,0.00019397,2]
[373364669,1752969060643,-153.246215,0.00019397,2]
[373364670,1752969060652,-151.0,0.00019397,2]
[373364671,1752969060662,-151.0,0.00019397,2]
[373364672,1752969060671,-151.0,0.00019397,2]
[373364673,1752969060681,-151.0,0.00019397,2]
[373364674,1752969060690,-151.0,0.00019397,2]
[373364675,1752969060699,-151.0,0.00019397,2]
[373364676,1752969060709,-151.0,0.00019397,2]
[373364677,1752969060719,-151.0,0.00019397,2]
[373364678,1752969060728,-151.0,0.00019397,2]
[373364679,1752969060738,-151.0,0.00019397,2]
[373364680,1752969060747,-151.0,0.00019397,2]
[373364681,1752969060757,-151.0,0.00019397,2]
[373364682,1752969060767,-352.974085,0.00019397,2]
[373364683,1752969060776,-352.974085,0.00019397,2]
[373364684,1752969060785,-352.974085,0.00019397,2]
[373364685,1752969060794,-352.974085,0.00019397,2]
[373364686,1752969060804,-151.0,0.00019397,2]
[373364687,1752969060813,-151.0,0.00019397,2]
[373364688,1752969060822,-151.0,0.00019397,2]
[373364689,1752969060831,-151.0,0.00019397,2]
[373364690,1752969060840,-151.0,0.00019397,2]
[373364691,1752969060850,-151.0,0.00019397,2]
[373364692,1752969060859,-151.0,0.00019397,2]
[373364693,1752969060869,-151.0,0.00019397,2]
[373364694,1752969060878,-151.0,0.00019397,2]
[373364695,1752969060890,-151.0,0.00019397,2]
[373364696,1752969060899,-281.117536,0.00019397,2]
[373364697,1752969060908,-151.0,0.00019397,2]
[373364698,1752969060917,-281.117536,0.00019397,2]
[373364699,1752969060926,-151.0,0.00019397,2]
[373364700,1752969060935,-151.0,0.00019397,2]
[373364701,1752969060944,-512.67,0.00019397,2]
[373364702,1752969060956,-151.0,0.00019397,2]
[373364703,1752969060965,-151.0,0.00019397,2]
[373364704,1752969060974,-200.378326,0.00019397,2]
[373364705,1752969060984,-200.378326,0.00019397,2]
[373364706,1752969060994,-200.378326,0.00019397,2]
[373364707,1752969061003,-151.2026,0.00019397,2]
[373364708,1752969061012,-200.378326,0.00019397,2]
[373364709,1752969061021,-151.0,0.00019397,2]
[373364710,1752969061032,-151.0,0.00019397,2]
[373364711,1752969061041,-480.0,0.00019397,2]
[373364712,1752969061050,-480.0,0.00019397,2]
[373364713,1752969061059,-480.0,0.00019397,2]
[373364714,1752969061068,-151.0,0.00019397,2]
[373364715,1752969061077,-480.0,0.00019397,2]
[373364716,1752969061086,-151.0,0.00019397,2]
[373364717,1752969061095,-151.0,0.00019397,2]
[373364718,1752969061104,-151.0,0.00019397,2]
[373364719,1752969061113,-151.0,0.00019397,2]
[373364720,1752969061122,-151.0,0.00019397,2]
[373364721,1752969061132,-480.0,0.00019397,2]
[373364722,1752969061141,-151.0,0.00019397,2]
[373364723,1752969061150,-480.0,0.00019397,2]
[373364724,1752969061159,-266.5389913,0.00019397,2]
[373364725,1752969061168,-480.0,0.00019397,2]
[373364726,1752969061177,-151.0,0.00019397,2]
[373364727,1752969061185,-151.0,0.00019397,2]
[373364728,1752969061195,-151.0,0.00019397,2]
[373364729,1752969061203,-151.0,0.00019397,2]
[373364730,1752969061213,-480.0,0.00019397,2]
[373364731,1752969061222,-480.0,0.00019397,2]
[373364732,1752969061231,-480.0,0.00019397,2]
[373364733,1752969061239,-480.0,0.00019397,2]
[373364734,1752969061249,-480.0,0.00019397,2]
[373364735,1752969061258,-480.0,0.00019397,2]
[373364736,1752969061267,-480.0,0.00019397,2]
[373364737,1752969061276,-480.0,0.00019397,2]
[373364738,1752969061285,-300.0,0.00019397,2]
[373364739,1752969061294,-480.0,0.00019397,2]
[373364740,1752969061303,-480.0,0.00019397,2]
[373364741,1752969061312,-480.0,0.00019397,2]
[373364742,1752969061321,-480.0,0.00019397,2]
[373364743,1752969061331,-480.0,0.00019397,2]
[373364744,1752969061340,-460.0,0.00019397,2]
[373364745,1752969061348,-480.0,0.00019397,2]
[373364746,1752969061357,-480.0,0.00019397,2]
[373364747,1752969061367,-480.0,0.00019397,2]
[373364748,1752969061375,-1432.69,0.00019397,2]
[373364749,1752969061385,-480.0,0.00019397,2]
[373364750,1752969061395,-480.0,0.00019397,2]
[373364751,1752969061404,-480.0,0.00019397,2]
[373364752,1752969061413,-480.0,0.00019397,2]
[373364753,1752969061422,-340.0,0.00019397,2]
[373364754,1752969061431,-480.0,0.00019397,2]
[373364755,1752969061440,-480.0,0.00019397,2]
[373364756,1752969061449,-480.0,0.00019397,2]
[373364757,1752969061459,-480.0,0.00019397,2]
[373364758,1752969061468,-525.05,0.00019397,2]
[373364759,1752969061477,-480.0,0.00019397,2]
[373364760,1752969061486,-739.94,0.00019397,2]
[373364761,1752969061495,-597.34,0.00019397,2]
[373364762,1752969061504,-595.53,0.00019397,2]
[373364763,1752969061513,-562.7,0.00019397,2]
[373364764,1752969061523,-480.0,0.00019397,2]
[373364765,1752969061532,-480.0,0.00019397,2]
[373364766,1752969061541,-480.0,0.00019397,2]
[373364767,1752969061550,-480.0,0.00019397,2]
[373364768,1752969061559,-725.42,0.00019397,2]
[373364769,1752969061568,-480.0,0.00019397,2]
[373364770,1752969061577,-480.0,0.00019397,2]
[373364771,1752969061586,-1026.84,0.00019397,2]
[373364772,1752969061595,-480.0,0.00019397,2]
[373364773,1752969061605,-493.25,0.00019397,2]
[373364774,1752969061615,-480.0,0.00019397,2]
[373364775,1752969061624,-480.0,0.00019397,2]
[373364776,1752969061634,-480.0,0.00019397,2]
[373364777,1752969061643,-480.0,0.00019397,2]
[373364778,1752969061652,-985.98,0.00019397,2]
[373364779,1752969061662,-480.0,0.00019397,2]
[373364780,1752969061671,-480.0,0.00019397,2]
[373364781,1752969061680,-480.0,0.00019397,2]
[373364782,1752969061690,-480.0,0.00019397,2]
[373364783,1752969061699,-480.0,0.00019397,2]
[373364784,1752969061709,-480.0,0.00019397,2]
[373364785,1752969061718,-480.0,0.00019397,2]
[373364786,1752969061727,-711.26,0.00019397,2]
[373364787,1752969061736,-480.0,0.00019397,2]
[373364788,1752969061745,-723.22,0.00019397,2]
[373364789,1752969061755,-480.0,0.00019397,2]
[373364790,1752969061765,-480.0,0.00019397,2]
[373364791,1752969061776,-480.0,0.00019397,2]
[373364792,1752969061785,-480.0,0.00019397,2]
[373364793,1752969061795,-480.0,0.00019397,2]
[373364794,1752969061804,-813.19,0.00019397,2]
[373364795,1752969061813,-480.0,0.00019397,2]
[373364796,1752969061823,-552.67,0.00019397,2]
[373364797,1752969061832,-480.0,0.00019397,2]
[373364798,1752969061841,-480.0,0.00019397,2]
[373364799,1752969061851,-480.0,0.00019397,2]
[373364800,1752969061860,-480.0,0.00019397,2]
[373364801,1752969061870,-553.94,0.00019397,2]
[373364802,1752969061880,-480.0,0.00019397,2]
[373364803,1752969061890,-274.56,0.00019397,2]
[373364804,1752969061899,-480.0,0.00019397,2]
[373364805,1752969061910,-480.0,0.00019397,2]
[373364806,1752969061919,-480.0,0.00019397,2]
[373364807,1752969061928,-808.09,0.00019397,2]
[373364808,1752969061938,-480.0,0.00019397,2]
[373364809,1752969061949,-1118.97,0.00019397,2]
[373364810,1752969061960,-480.0,0.00019397,2]
[373364811,1752969061972,-480.0,0.00019397,2]
[373364812,1752969061982,-480.0,0.00019397,2]
[373364813,1752969061992,-480.0,0.00019397,2]
[373364814,1752969062001,-480.0,0.00019397,2]
[373364815,1752969062012,-480.0,0.00019397,2]
[373364816,1752969062021,-737.81,0.00019397,2]
[373364817,1752969062031,-480.0,0.00019397,2]
[373364818,1752969062041,-480.0,0.00019397,2]
[373364819,1752969062052,-480.0,0.00019397,2]
[373364820,1752969062062,-480.0,0.00019397,2]
[373364821,1752969062072,-480.0,0.00019397,2]
[373364822,1752969062085,-480.0,0.00019397,2]
[373364823,1752969062095,-480.0,0.00019397,2]
[373364824,1752969062104,-480.0,0.00019397,2]
[373364825,1752969062113,-496.82,0.00019397,2]
[373364826,1752969062122,-480.0,0.00019397,2]
[373364827,1752969062131,-480.0,0.00019397,2]
[373364828,1752969062140,-603.91,0.00019397,2]
[373364829,1752969062150,-624.05,0.00019397,2]
[373364830,1752969062159,-598.17,0.00019397,2]
[373364831,1752969062168,-480.0,0.00019397,2]
[373364832,1752969062178,-480.0,0.00019397,2]
[373364833,1752969062187,-1079.43,0.00019397,2]
[373364834,1752969062196,-748.04,0.00019397,2]
[373364835,1752969062205,-480.0,0.00019397,2]
[373364836,1752969062215,-480.0,0.00019397,2]
[373364837,1752969062224,-1769.09,0.00019397,2]
[373364838,1752969062233,-480.0,0.00019397,2]
[373364839,1752969062241,-864.0,0.00019397,2]
[373364840,1752969062251,-573.4,0.00019397,2]
[373364841,1752969062260,-480.0,0.00019397,2]
[373364842,1752969062270,-505.35,0.00019397,2]
[373364843,1752969062279,-480.0,0.00019397,2]
[373364844,1752969062288,-480.0,0.00019397,2]
[373364845,1752969062297,-480.0,0.00019397,2]
[373364846,1752969062306,-480.0,0.00019397,2]
[373364847,1752969062315,-593.05711045,0.00019397,2]
[373364848,1752969062324,-480.0,0.00019397,2]
[373364849,1752969062333,-480.0,0.00019397,2]
[373364850,1752969062342,-480.0,0.00019397,2]
[373364851,1752969062351,-480.0,0.00019397,2]
[373364852,1752969062360,-978.33,0.00019397,2]
[373364853,1752969062369,-480.0,0.00019397,2]
[373364854,1752969062379,-480.0,0.00019397,2]
[373364855,1752969062389,-480.0,0.00019397,2]
[373364856,1752969062398,-480.0,0.00019397,2]
[373364857,1752969062407,-480.0,0.00019397,2]
[373364858,1752969062417,-480.0,0.00019397,2]
[373364859,1752969062426,-1583.23,0.00019397,2]
[373364860,1752969062435,-480.0,0.00019397,2]
[373364861,1752969062444,-480.0,0.00019397,2]
[373364862,1752969062454,-480.0,0.00019397,2]
[373364863,1752969062463,-595.66402994,0.00019397,2]
[373364864,1752969062473,-480.0,0.00019397,2]
[373364865,1752969062482,-480.0,0.00019397,2]
[373364866,1752969062491,-480.0,0.00019397,2]
[373364867,1752969062500,-480.0,0.00019397,2]
[373364868,1752969062508,-775.67,0.00019397,2]
[373364869,1752969062518,-480.0,0.00019397,2]
[373364870,1752969062527,-946.16,0.00019397,2]
[373364871,1752969062536,-480.0,0.00019397,2]
[373364872,1752969062546,-481.74,0.00019397,2]
[373364873,1752969062555,-673.5,0.00019397,2]
[373364874,1752969062564,-480.0,0.00019397,2]
[373364875,1752969062573,-869.48,0.00019397,2]
[373364876,1752969062583,-480.0,0.00019397,2]
[373364877,1752969062592,-480.0,0.00019397,2]
[373364878,1752969062601,-480.0,0.00019397,2]
[373364879,1752969062611,-480.0,0.00019397,2]
[373364880,1752969062621,-480.0,0.00019397,2]
[373364881,1752969062630,-480.0,0.00019397,2]
[373364882,1752969062640,-480.0,0.00019397,2]
[373364883,1752969062649,-480.0,0.00019397,2]
[373364884,1752969062658,-480.0,0.00019397,2]
[373364885,1752969062667,-480.0,0.00019397,2]
[373364886,1752969062676,-480.0,0.00019397,2]
[373364887,1752969062685,-933.7,0.00019397,2]
[373364888,1752969062695,-480.0,0.00019397,2]
[373364889,1752969062704,-480.0,0.00019397,2]
[373364890,1752969062714,-600.66,0.00019397,2]
[373364891,1752969062724,-480.0,0.00019397,2]
[373364892,1752969062734,-480.0,0.00019397,2]
[373364893,1752969062743,-429.77248043,0.00019397,2]
[373364894,1752969062752,-480.0,0.00019397,2]
[373364895,1752969062761,-804.46,0.00019397,2]
[373364896,1752969062770,-480.0,0.00019397,2]
[373364897,1752969062780,-480.0,0.00019397,2]
[373364898,1752969062789,-663.81,0.00019397,2]
[373364899,1752969062798,-480.0,0.00019397,2]
[373364900,1752969062807,-480.0,0.00019397,2]
[373364901,1752969062816,-480.0,0.00019397,2]
[373364902,1752969062825,-480.0,0.00019397,2]
[373364903,1752969062834,-480.0,0.00019397,2]
[373364904,1752969062843,-480.0,0.00019397,2]
[373364905,1752969062852,-480.0,0.00019397,2]
[373364906,1752969062861,-602.12,0.00019397,2]
[373364907,1752969062870,-770.09,0.00019397,2]
[373364908,1752969062879,-501.74,0.00019397,2]
[373364909,1752969062888,-613.07,0.00019397,2]
[373364910,1752969062898,-1303.77,0.00019397,2]
[373364911,1752969062907,-480.0,0.00019397,2]
[373364912,1752969062916,-508.03,0.00019397,2]
[373364913,1752969062926,-563.66,0.00019397,2]
[373364914,1752969062935,-480.0,0.00019397,2]
[373364915,1752969062944,-959.83,0.00019397,2]
[373364916,1752969062957,-1481.71,0.00019397,2]
[373364917,1752969062971,-480.0,0.00019397,2]
[373364918,1752969062981,-480.0,0.00019397,2]
[373364919,1752969062990,-693.06,0.00019397,2]
[373364920,1752969063002,-480.0,0.00019397,2]
[373364921,1752969063011,-540.35,0.00019397,2]
[373364922,1752969063020,-480.0,0.00019397,2]
[373364923,1752969063031,-480.0,0.00019397,2]
[373364924,1752969063040,-480.0,0.00019397,2]
[373364925,1752969063049,-480.0,0.00019397,2]
[373364926,1752969063058,-480.0,0.00019397,2]
[373364927,1752969063067,-300.0,0.00019397,2]
[373364928,1752969063076,-480.0,0.00019397,2]
[373364929,1752969063085,-480.0,0.00019397,2]
[373364930,1752969063094,-480.0,0.00019397,2]
[373364931,1752969063104,-200.57,0.00019397,2]
[373364932,1752969063113,-480.0,0.00019397,2]
[373364933,1752969063122,-480.0,0.00019397,2]
[373364934,1752969063132,-480.0,0.00019397,2]
[373364935,1752969063141,-480.0,0.00019397,2]
[373364936,1752969063151,-31606.63,0.00019397,2]
[373364937,1752969063161,-480.0,0.00019397,2]
[373364938,1752969063171,-480.0,0.00019397,2]
[373364939,1752969063180,-522.45,0.00019397,2]
[373364940,1752969063189,-480.0,0.00019397,2]
[373364941,1752969063198,-589.16,0.00019397,2]
[373364942,1752969063208,-480.0,0.00019397,2]
[373364943,1752969063219,-3819.61,0.00019397,2]
[373364944,1752969063228,-665.15,0.00019397,2]
[373364945,1752969063238,-511.88,0.00019397,2]
[373364946,1752969063247,-480.0,0.00019397,2]
[373364947,1752969063256,-480.0,0.00019397,2]
[373364948,1752969063265,-480.0,0.00019397,2]
[373364949,1752969063274,-1381.94,0.00019397,2]
[373364950,1752969063284,-480.0,0.00019397,2]
[373364951,1752969063293,-480.0,0.00019397,2]
[373364952,1752969063302,-693.28,0.00019397,2]
[373364953,1752969063312,-480.0,0.00019397,2]
[373364954,1752969063321,-480.0,0.00019397,2]
[373364955,1752969063330,-740.08,0.00019397,2]
[373364956,1752969063339,-480.0,0.00019397,2]
[373364957,1752969063348,-3992.9,0.00019397,2]
[373364958,1752969063357,-480.0,0.00019397,2]
[373364959,1752969063366,-480.0,0.00019397,2]
[373364960,1752969063375,-480.0,0.00019397,2]
[373364961,1752969063385,-808.27,0.00019397,2]
[373364962,1752969063394,-480.0,0.00019397,2]
[373364963,1752969063403,-480.0,0.00019397,2]
[373364964,1752969063413,-669.4,0.00019397,2]
[373364965,1752969063422,-1661.89,0.00019397,2]
[373364966,1752969063431,-653.72,0.00019397,2]
[373364967,1752969063440,-600.13,0.00019397,2]
[373364968,1752969063449,-480.0,0.00019397,2]
[373364969,1752969063458,-577.71,0.00019397,2]
[373364970,1752969063468,-480.0,0.00019397,2]
[373364971,1752969063477,-480.0,0.00019397,2]
[373364972,1752969063486,-3427.31,0.00019397,2]
[373364973,1752969063495,-1688.55,0.00019397,2]
[373364974,1752969063504,-480.0,0.00019397,2]
[373364975,1752969063514,-480.0,0.00019397,2]
[373364976,1752969063523,-260.0,0.00019397,2]
[373364977,1752969063533,-480.0,0.00019397,2]
[373364978,1752969063736,-480.0,0.00019397,2]
[373364979,1752969063746,-2936.63,0.00019397,2]
[373364980,1752969063755,-3278.32,0.00019397,2]
[373364981,1752969063765,-480.0,0.00019397,2]
[373364982,1752969063775,-264.91293189,0.00019397,2]
[373364983,1752969063784,-1373.32,0.00019397,2]
[373364984,1752969063794,-480.0,0.00019397,2]
[373364985,1752969063804,-693.68,0.00019397,2]
[373364986,1752969063813,-219.89919546,0.00019397,2]
[373364987,1752969063823,-758.33,0.00019397,2]
[373364988,1752969063833,-1002.9,0.00019397,2]
[373364989,1752969063843,-2861.18,0.00019397,2]
[373364990,1752969063852,-493.16,0.00019397,2]
[373364991,1752969063862,-2214.67,0.00019397,2]
[373364992,1752969063872,-480.0,0.00019397,2]
[373364993,1752969063881,-480.0,0.00019397,2]
[373364994,1752969063890,-480.0,0.00019397,2]
[373364995,1752969063899,-2410.65,0.00019397,2]
[373364996,1752969063909,-1000.0,0.00019397,2]
[373364997,1752969063922,-480.0,0.00019397,2]
[373364998,1752969063931,-480.0,0.00019397,2]
[373364999,1752969063940,-480.0,0.00019397,2]
[373365000,1752969063950,-1529.67,0.00019397,2]
[373365001,1752969063961,-480.0,0.00019397,2]
[373365002,1752969063972,-480.0,0.00019397,2]
[373365003,1752969063981,-757.31,0.00019397,2]
[373365004,1752969063991,-284.65800368,0.00019397,2]
[373365005,1752969064000,-480.0,0.00019397,2]
[373365006,1752969064010,-480.0,0.00019397,2]
[373365007,1752969064019,-918.64,0.00019397,2]
[373365008,1752969064029,-1858.06,0.00019397,2]
[373365009,1752969064039,-480.0,0.00019397,2]
[373365010,1752969064048,-1198.99,0.00019397,2]
[373365011,1752969064057,-3176.18,0.00019397,2]
[373365012,1752969064066,-789.78,0.00019397,2]
[373365013,1752969064075,-480.0,0.00019397,2]
[373365014,1752969064085,-1230.5,0.00019397,2]
[373365015,1752969064094,-1404.13,0.00019397,2]
[373365016,1752969064104,-900.76,0.00019397,2]
[373365017,1752969064113,-3599.1,0.00019397,2]
[373365018,1752969064123,-1870.61,0.00019397,2]
[373365019,1752969064133,-480.0,0.00019397,2]
[373365020,1752969064142,-1121.97,0.00019397,2]
[373365021,1752969064152,-480.0,0.00019397,2]
[373365022,1752969064161,-480.0,0.00019397,2]
[373365023,1752969064171,-480.0,0.00019397,2]
[373365024,1752969064180,-480.0,0.00019397,2]
[373365025,1752969064190,-1257.9,0.00019397,2]
[373365026,1752969064200,-798.59,0.00019397,2]
[373365027,1752969064209,-480.0,0.00019397,2]
[373365028,1752969064219,-686.13,0.00019397,2]
[373365029,1752969064228,-480.0,0.00019397,2]
[373365030,1752969064238,-1033.68,0.00019397,2]
[373365031,1752969064247,-2396.83,0.00019397,2]
[373365032,1752969064257,-480.0,0.00019397,2]
[373365033,1752969064267,-906.66,0.00019397,2]
[373365034,1752969064276,-1805.61,0.00019397,2]
[373365035,1752969064286,-480.0,0.00019397,2]
[373365036,1752969064295,-674.24,0.00019397,2]
[373365037,1752969064305,-1136.62,0.00019397,2]
[373365038,1752969064316,-1106.58,0.00019397,2]
[373365039,1752969064325,-847.36,0.00019397,2]
[373365040,1752969064335,-1030.85,0.00019397,2]
[373365041,1752969064345,-480.0,0.00019397,2]
[373365042,1752969064354,-563.35,0.00019397,2]
[373365043,1752969064363,-1696.34,0.00019397,2]
[373365044,1752969064373,-4439.75,0.00019397,2]
[373365045,1752969064382,-585.34,0.00019397,2]
[373365046,1752969064393,-1856.23,0.00019397,2]
[373365047,1752969064414,-500.56,0.00019397,2]
[373365048,1752969064432,-3913.18,0.00019397,2]
[373365049,1752969064442,-480.0,0.00019397,2]
[373365050,1752969064452,-2584.47,0.00019397,2]
[373365051,1752969064461,-480.0,0.00019397,2]
[373365052,1752969064471,-480.0,0.00019397,2]
[373365053,1752969064480,-530.62,0.00019397,2]
[373365054,1752969064490,-480.0,0.00019397,2]
[373365055,1752969064499,-480.0,0.00019397,2]
[373365056,1752969064508,-480.0,0.00019397,2]
[373365057,1752969064518,-480.0,0.00019397,2]
[373365058,1752969064527,-1002.3,0.00019397,2]
[373365059,1752969064537,-480.0,0.00019397,2]
[373365060,1752969064547,-1370.48,0.00019397,2]
[373365061,1752969064556,-1338.78,0.00019397,2]
[373365062,1752969064566,-480.0,0.00019397,2]
[373365063,1752969064576,-947.08,0.00019397,2]
[373365064,1752969064585,-480.0,0.00019397,2]
[373365065,1752969064595,-1249.62,0.00019397,2]
[373365066,1752969064605,-480.0,0.00019397,2]
[373365067,1752969064614,-480.0,0.00019397,2]
[373365068,1752969064624,-711.6,0.00019397,2]
[373365069,1752969064634,-480.0,0.00019397,2]
[373365070,1752969064644,-480.0,0.00019397,2]
[373365071,1752969064654,-823.71,0.00019397,2]
[373365072,1752969064663,-736.37,0.00019397,2]
[373365073,1752969064672,-480.0,0.00019397,2]
[373365074,1752969064682,-480.0,0.00019397,2]
[373365075,1752969064691,-661.84,0.00019397,2]
[373365076,1752969064700,-847.62,0.00019397,2]
[373365077,1752969064710,-480.0,0.00019397,2]
[373365078,1752969064719,-1343.31,0.00019397,2]
[373365079,1752969064728,-480.0,0.00019397,2]
[373365080,1752969064737,-1822.26,0.00019397,2]
[373365081,1752969064747,-4318.28,0.00019397,2]